[Event "WYCC 2018 G18"]
[Site "Halkidiki"]
[Date "2018.10.21"]
[Round "2"]
[White "Nemcova, Kamila"]
[Black "Rozman, Monika"]
[Result "0-1"]
[ECO "A16"]
[WhiteElo "1879"]
[BlackElo "2141"]
[Annotator "NA"]
[PlyCount "58"]
[EventDate "2018.10.20"]
[EventType "swiss"]
[EventCountry "GRE"]
[SourceTitle "playchess.com"]
[Source "ChessBase"]
[SourceQuality "1"]
[TimeControl "40/5400+30:1800+30"]

1. c4 {[%emt 0:00:00]} Nf6 {[%emt 0:01:43]} 2. Nc3 {[%emt 0:00:00]} d5 {[%emt 0:00:38]} 3. cxd5 {[%emt 0:01:25]} Nxd5 {[%emt 0:00:06]} 4. Qa4+ {[%emt 0:01:35] A16: English Opening: 1...Nf6 with ...d5} (4. Nf3 g6 5. Qb3 Nb6 6. d4 Bg7 7. Bf4 Be6 8. Qa3 O-O 9. e3 N8d7 10. Rd1 c6 11. Ng5 Bf5 12. e4 Bg4 13. Be2 Bxe2 14. Nxe2 Qe8 {1-0 (32) Duda,J (2739)-Ivanchuk,V (2710) Batumi 2018}) 4... c6 {[%emt 0:02:31]} 5. Nf3 {[%emt 0:09:23]} Nb6 {[%emt 0:02:58]} 6. Qh4 {[%emt 0:02:27]} Na6 $146 {[%emt 0:07:47]} ({Predecessor:} 6... Bf5 7. e4 Bg6 8. Ne5 Qd6 9. f4 h6 10. Be2 N8d7 11. Nxg6 Qxg6 {½-½ (43) Schnitzspan,L (2365)-Pieper Emden,C (2345) Gladenbach 1996}) 7. d3 {[%emt 0:10:12]} Bd7 {[%emt 0:05:47]} 8. Ne5 {[%emt 0:19:07]} Be6 {[%emt 0:04:57]} 9. Bd2 {[%emt 0:09:33]} g6 {[%emt 0:04:27]} 10. Ne4 {[%emt 0:05:25]} Bg7 {[%emt 0:04:18]} 11. f4 {[%emt 0:06:53]} Nd5 {[%emt 0:21:24]} 12. Ng5 {[%emt 0:04:34]} Ndb4 {[%emt 0:01:27]} 13. Nxe6 {[%emt 0:08:01]} fxe6 {[%emt 0:00:05]} 14. Kd1 {[%emt 0:00:37]} O-O {[%emt 0:07:01]} 15. Nf3 {[%emt 0:06:45]} h6 {[%emt 0:10:41]} 16. Qg4 {[%emt 0:02:40]} Qd5 {[%emt 0:02:22]} 17. e4 {[%emt 0:05:18]} Nxd3 {[%emt 0:03:16]} 18. Bxd3 $2 {[%emt 0:01:41]} (18. exd5 $16 {is forced if you want to stay better.} Nf2+ 19. Ke1 Nxg4 20. dxc6) 18... Qxd3 {[%emt 0:00:05]} 19. Qxe6+ {[%emt 0:00:30]} Kh7 {[%emt 0:00:31]} 20. Qh3 {[%emt 0:02:05]} Rad8 {[%emt 0:08:48]} 21. Ng5+ {[%emt 0:01:12]} Kg8 {[%emt 0:00:47]} 22. Qxd3 $15 {[%emt 0:00:18]} Rxd3 {[%emt 0:00:07]} 23. Ne6 {[%emt 0:00:15]} Rf6 {[%emt 0:01:09]} 24. Nxg7 {[%emt 0:00:15]} Rfd6 {[%emt 0:00:24]} 25. e5 {[%emt 0:01:07]} R6d5 {[%emt 0:01:41]} 26. Ne6 {[%emt 0:00:36]} Rxd2+ {[%emt 0:01:16]} 27. Kc1 {[%emt 0:00:31]} Rf2 {[%emt 0:01:14]} 28. g3 {[%emt 0:00:43]} Nb4 {[%emt 0:00:55]} 29. b3 {[%emt 0:00:39]} Rdd2 {[%emt 0:01:59]} 0-1

[Event "WYCC 2018 G18"]
[Site "Halkidiki"]
[Date "2018.10.21"]
[Round "2"]
[White "Nguyen, Hong Ngoc"]
[Black "Dimitrova, Aleksandra"]
[Result "0-1"]
[ECO "B06"]
[WhiteElo "1861"]
[BlackElo "2228"]
[Annotator "NA"]
[PlyCount "88"]
[EventDate "2018.10.20"]
[EventType "swiss"]
[EventCountry "GRE"]
[SourceTitle "playchess.com"]
[Source "ChessBase"]
[SourceQuality "1"]
[TimeControl "40/5400+30:1800+30"]

1. d4 {[%emt 0:00:00]} g6 {[%emt 0:00:00]} 2. e4 {[%emt 0:00:17]} Bg7 {[%emt 0:00:00]} 3. Nf3 {[%emt 0:00:19]} d6 {[%emt 0:00:07]} 4. c3 {[%emt 0:00:30]} e5 {[%emt 0:01:17]} 5. dxe5 {[%emt 0:03:35] B06: Moderne Verteidigung} dxe5 {[%emt 0:00:10]} 6. Qxd8+ {[%emt 0:00:36]} Kxd8 {[%emt 0:00:03]} 7. Bc4 {[%emt 0:01:46]} f6 {[%emt 0:05:22]} 8. O-O {[%emt 0:01:17]} Ke7 {[%emt 0:03:43]} 9. a4 {[%emt 0:03:01]} Nh6 {[%emt 0:02:33]} 10. h3 $146 {[%emt 0:02:24]} ({Vorgänger:} 10. Na3 Be6 11. a5 a6 12. b4 Nf7 {1-0 (61) Evdokimov,A (2503)-Chigladze,I (2342) Poti 2016}) 10... Nf7 {[%emt 0:01:04]} 11. Nbd2 {[%emt 0:03:49]} Nd6 {[%emt 0:01:19]} 12. Ba2 {[%emt 0:01:39]} Nd7 {[%emt 0:06:00]} 13. b4 {[%emt 0:02:26]} a5 {[%emt 0:01:47]} 14. Bb3 {[%emt 0:02:24]} b6 {[%emt 0:12:14]} 15. Ba3 {[%emt 0:03:50]} Bb7 {[%emt 0:06:13]} 16. Rfe1 {[%emt 0:01:48]} Kd8 {[%emt 0:05:31]} 17. Rad1 {[%emt 0:04:18]} axb4 {[%emt 0:11:30]} 18. cxb4 {[%emt 0:00:28]} b5 {[%emt 0:00:23]} 19. a5 {[%emt 0:01:02]} Bh6 {[%emt 0:03:00]} 20. Bc2 {[%emt 0:03:29]} Kc8 {[%emt 0:06:40]} 21. Nb3 $2 {[%emt 0:04:04]} (21. Nb1 $11 {und Weiss steht sicher.}) 21... Nc4 {[%emt 0:01:14]} 22. Bc1 {[%emt 0:00:36]} Bf8 {[%emt 0:00:10]} 23. Bd2 {[%emt 0:09:40]} Nxd2 {[%emt 0:00:39]} 24. Nfxd2 {[%emt 0:00:59]} Bxb4 {[%emt 0:00:09]} 25. Bd3 {[%emt 0:01:44]} Ba6 {[%emt 0:04:05]} 26. Be2 {[%emt 0:08:16]} h5 {[%emt 0:03:36]} 27. Rf1 {[%emt 0:04:47]} c5 {[%emt 0:03:19]} 28. f4 {[%emt 0:00:33]} c4 {[%emt 0:02:13]} 29. Nc1 {[%emt 0:00:40]} Rd8 {[%emt 0:01:51]} 30. fxe5 {[%emt 0:01:24]} Nxe5 {[%emt 0:00:56]} 31. Nf3 {[%emt 0:00:24]} Rxd1 {[%emt 0:00:56]} 32. Rxd1 {[%emt 0:00:12]} Bb7 {[%emt 0:01:33]} 33. g4 {[%emt 0:03:10]} h4 {[%emt 0:04:39]} 34. Kf1 {[%emt 0:05:11]} Bxe4 {[%emt 0:01:03]} 35. Nd4 {[%emt 0:00:20]} Rxa5 {[%emt 0:01:11]} 36. Ne6 {[%emt 0:00:31]} Kb7 {[%emt 0:00:48]} 37. Kf2 {[%emt 0:00:49]} Ra6 {[%emt 0:01:59]} 38. Nd4 {[%emt 0:01:29]} Bc5 {[%emt 0:00:50]} 39. Ke3 {[%emt 0:00:10]} Bc2 {[%emt 0:01:18]} 40. Rd2 {[%emt 0:00:00]} Ra3+ {[%emt 0:00:00]} 41. Kf2 $19 {[%emt 0:02:33]} Bd3 {[%emt 0:02:47]} 42. Ke3 {[%emt 0:01:30]} Bb1+ {[%emt 0:00:23]} 43. Kf2 {[%emt 0:00:20]} c3 {[%emt 0:00:42]} 44. Rd1 {[%emt 0:00:50]} Bc2 {[%emt 0:00:45]} 0-1

[Event "WYCC 2018 G18"]
[Site "Halkidiki"]
[Date "2018.10.21"]
[Round "2"]
[White "Muratova, Saltanat"]
[Black "Egyed, Judit"]
[Result "1-0"]
[ECO "B10"]
[WhiteElo "1859"]
[BlackElo "2089"]
[Annotator "NA"]
[PlyCount "73"]
[EventDate "2018.10.20"]
[EventType "swiss"]
[EventCountry "GRE"]
[SourceTitle "playchess.com"]
[Source "ChessBase"]
[SourceQuality "1"]
[TimeControl "40/5400+30:1800+30"]

1. e4 c6 2. Nc3 g6 3. Nf3 Bg7 4. Bc4 b5 5. Bb3 h6 6. O-O a5 7. a4 b4 8. Ne2 d6 9. d4 Qc7 10. Ng3 Ba6 11. Re1 e5 12. c3 Nd7 13. Be3 bxc3 14. bxc3 Ngf6 15. h3 Rb8 16. Rb1 c5 17. Qd2 Nb6 $18 (17... c4 $14 18. Bc2 Rxb1 19. Rxb1 h5) 18. dxe5 dxe5 19. Nxe5 c4 20. Bc2 O-O 21. Nf3 Rfd8 22. Nd4 Qd7 23. Bxh6 Nxa4 24. Bxa4 Rxb1 25. Bxd7 Bxh6 26. Qe2 Rxe1+ 27. Qxe1 Nxd7 28. Qa1 Nb8 29. Qxa5 Re8 30. h4 Bf4 31. Nge2 Bd6 32. h5 Kg7 33. Qg5 Bc8 34. h6+ Kg8 35. Qf6 Be5 36. h7+ Kxh7 37. Qxf7+ 1-0

[Event "WYCC 2018 G18"]
[Site "Halkidiki"]
[Date "2018.10.21"]
[Round "2"]
[White "Perminaite, Guoda"]
[Black "Radeva, Viktoria"]
[Result "0-1"]
[ECO "B22"]
[WhiteElo "1840"]
[BlackElo "2163"]
[Annotator "NA"]
[PlyCount "66"]
[EventDate "2018.10.20"]
[EventType "swiss"]
[EventCountry "GRE"]
[SourceTitle "playchess.com"]
[Source "ChessBase"]
[SourceQuality "1"]
[TimeControl "40/5400+30:1800+30"]

1. e4 {[%emt 0:00:00]} c5 {[%emt 0:00:00]} 2. c3 {[%emt 0:00:00]} d5 {[%emt 0:00:00]} 3. exd5 {[%emt 0:00:00]} Qxd5 {[%emt 0:00:00]} 4. d4 {[%emt 0:00:04]} Nc6 {[%emt 0:00:00]} 5. Nf3 {[%emt 0:00:16]} Bf5 {[%emt 0:00:07]} 6. Be3 {[%emt 0:03:31]} Nf6 {[%emt 0:01:43]} 7. Na3 {[%emt 0:00:56]} e6 {[%emt 0:10:53]} 8. dxc5 {[%emt 0:24:26]} Rd8 {[%emt 0:08:01]} 9. Qxd5 {[%emt 0:04:03]} ({Better is} 9. Qb3 $14) 9... Nxd5 {[%emt 0:01:46]} 10. Bd4 {[%emt 0:01:06]} f6 {[%emt 0:13:03]} 11. Nh4 {[%emt 0:05:22]} Bg4 $11 {[%emt 0:14:22]} 12. h3 {[%emt 0:02:34]} Bh5 {[%emt 0:01:11]} 13. g4 {[%emt 0:15:05]} Bf7 {[%emt 0:00:13]} 14. f3 {[%emt 0:01:19]} h5 {[%emt 0:06:27]} 15. Ng2 {[%emt 0:11:41]} g6 {[%emt 0:10:28]} 16. Bb5 {[%emt 0:03:41]} e5 {[%emt 0:02:07]} 17. Bf2 {[%emt 0:00:55]} hxg4 {[%emt 0:02:10]} 18. fxg4 {[%emt 0:00:20]} Nc7 {[%emt 0:04:53]} 19. Bc4 {[%emt 0:01:16]} Bd5 {[%emt 0:03:42]} 20. Bxd5 {[%emt 0:00:24]} Rxd5 {[%emt 0:00:13]} 21. Rd1 {[%emt 0:06:05]} Bxc5 {[%emt 0:03:17]} 22. Rxd5 {[%emt 0:00:28]} Bxf2+ {[%emt 0:00:05]} 23. Kxf2 {[%emt 0:00:10]} Nxd5 {[%emt 0:00:04]} 24. Nc4 {[%emt 0:00:35]} Ke7 {[%emt 0:00:42]} 25. h4 f5 {[%emt 0:01:18]} 26. Re1 {[%emt 0:03:51]} Ke6 {[%emt 0:02:14]} 27. Kg3 {[%emt 0:01:19]} e4 {[%emt 0:01:17]} 28. h5 {[%emt 0:01:31]} Ne5 {[%emt 0:08:09]} 29. Nxe5 {[%emt 0:06:03]} Kxe5 {[%emt 0:00:05]} 30. hxg6 {[%emt 0:01:28]} f4+ {[%emt 0:00:49]} 31. Kf2 {[%emt 0:00:13]} Nf6 {[%emt 0:02:09]} 32. g5 {[%emt 0:01:11]} Ng4+ {[%emt 0:01:04]} 33. Kf1 {[%emt 0:01:43]} f3 {[%emt 0:01:26]} 0-1

[Event "WYCC 2018 G18"]
[Site "Halkidiki"]
[Date "2018.10.21"]
[Round "2"]
[White "Cosme Contreras, Trilce"]
[Black "Li, Yilin"]
[Result "1-0"]
[ECO "D31"]
[WhiteElo "1829"]
[BlackElo "1993"]
[Annotator "NA"]
[PlyCount "71"]
[EventDate "2018.10.20"]
[EventType "swiss"]
[EventCountry "GRE"]
[SourceTitle "playchess.com"]
[Source "ChessBase"]
[SourceQuality "1"]
[TimeControl "40/5400+30:1800+30"]

1. d4 {[%emt 0:00:00]} d5 {[%emt 0:00:00]} 2. c4 {[%emt 0:00:00]} e6 {[%emt 0:00:00]} 3. Nc3 {[%emt 0:00:00]} c6 {[%emt 0:00:00]} 4. e4 {[%emt 0:02:59]} dxe4 {[%emt 0:00:09]} 5. Nxe4 {[%emt 0:00:11]} Bb4+ {[%emt 0:00:07]} 6. Bd2 {[%emt 0:01:08]} Qxd4 {[%emt 0:00:04]} 7. Bxb4 {[%emt 0:00:04]} Qxe4+ {[%emt 0:00:08]} 8. Be2 {[%emt 0:01:34]} Na6 {[%emt 0:01:15]} 9. Ba5 {[%emt 0:03:04]} b6 {[%emt 0:00:03]} 10. Qd6 {[%emt 0:08:16]} bxa5 {[%emt 0:39:22]} (10... Bd7 $5 {[%cal Rb6a5]} 11. Bc3 f6 $14) 11. Rd1 {[%emt 0:09:28]} f6 {[%emt 0:07:53]} 12. f3 {[%emt 0:03:32]} Qe3 {[%emt 0:05:47]} 13. Qxc6+ $11 {[%emt 0:00:56]} Kf7 {[%emt 0:00:51]} 14. Qxa8 {[%emt 0:00:48]} Ne7 {[%emt 0:03:20]} 15. Qe4 {[%emt 0:09:54]} Nf5 {[%emt 0:05:22]} 16. g4 {[%emt 0:01:31]} Nc5 {[%emt 0:02:27]} 17. Qxe3 {[%emt 0:03:06]} Nxe3 {[%emt 0:00:03]} 18. Rd2 {[%emt 0:00:26]} Bb7 {[%emt 0:13:18]} 19. h3 {[%emt 0:01:28]} Ng2+ {[%emt 0:02:17]} 20. Kf2 {[%emt 0:00:39]} Nf4 {[%emt 0:00:35]} 21. h4 {[%emt 0:02:02]} Ke7 {[%emt 0:07:30]} 22. Nh3 {[%emt 0:01:50]} Nxh3+ {[%emt 0:01:04]} 23. Rxh3 {[%emt 0:00:06]} e5 {[%emt 0:00:03]} 24. Rh1 {[%emt 0:00:47]} h5 {[%emt 0:04:49]} 25. g5 {[%emt 0:09:05]} fxg5 {[%emt 0:02:23]} 26. hxg5 {[%emt 0:00:06]} Ke6 {[%emt 0:00:36]} 27. Ke3 {[%emt 0:08:38]} Kf5 {[%emt 0:01:32]} 28. Rd6 {[%emt 0:00:59]} h4 {[%emt 0:01:09]} 29. Bf1 {[%emt 0:01:56]} Rh7 {[%emt 0:01:18]} 30. Bh3+ {[%emt 0:00:50]} Kxg5 {[%emt 0:00:02]} 31. Rg1+ {[%emt 0:00:03]} Kh5 {[%emt 0:00:11]} 32. Bg4+ {[%emt 0:00:03]} Kg5 {[%emt 0:00:03]} 33. Bd7+ {[%emt 0:00:08]} Kh5 {[%emt 0:00:34]} 34. Be8+ {[%emt 0:00:06]} g6 {[%emt 0:00:05]} 35. Bxg6+ {[%emt 0:00:04]} Kh6 {[%emt 0:00:05]} 36. Be8+ {[%emt 0:00:14] Kg6} 1-0

[Event "WYCC 2018 G18"]
[Site "Halkidiki"]
[Date "2018.10.21"]
[Round "2"]
[White "Simic, Anja"]
[Black "Golsta, Madara"]
[Result "1/2-1/2"]
[ECO "E91"]
[WhiteElo "1813"]
[BlackElo "1938"]
[Annotator "NA"]
[PlyCount "89"]
[EventDate "2018.10.20"]
[EventType "swiss"]
[EventCountry "GRE"]
[SourceTitle "playchess.com"]
[Source "ChessBase"]
[SourceQuality "1"]
[TimeControl "40/5400+30:1800+30"]

1. d4 {[%emt 0:00:00]} Nf6 {[%emt 0:00:11]} 2. c4 {[%emt 0:00:00]} g6 {[%emt 0:00:20]} 3. Nc3 {[%emt 0:00:19]} Bg7 {[%emt 0:00:36]} 4. e4 {[%emt 0:00:36]} d6 {[%emt 0:00:45]} 5. Nf3 {[%emt 0:00:26]} O-O {[%emt 0:01:13]} 6. Be2 {[%emt 0:00:29]} Na6 {[%emt 0:00:53]} 7. O-O {[%emt 0:02:15]} e5 {[%emt 0:01:18]} 8. d5 {[%emt 0:08:25]} Nc5 {[%emt 0:00:32] LiveBook: 612 Games} 9. Qc2 {[%emt 0:06:00]} a5 {[%emt 0:01:33]} 10. b3 {[%emt 0:06:35]} h6 {[%emt 0:07:26]} 11. Bb2 {[%emt 0:08:03]} Nh5 {[%emt 0:02:31]} 12. a3 {[%emt 0:12:06]} a4 {[%emt 0:06:46]} 13. Nxa4 {[%emt 0:13:08]} Nxa4 {[%emt 0:00:23]} 14. bxa4 {[%emt 0:00:09]} Nf4 {[%emt 0:03:44]} 15. Rfe1 {[%emt 0:11:31]} f5 {[%emt 0:08:17]} 16. Bd3 {[%emt 0:12:36]} Rxa4 {[%emt 0:11:46]} 17. Qxa4 {[%emt 0:10:02]} Nxd3 {[%emt 0:00:11]} 18. Qc2 {[%emt 0:01:49]} Nxe1 {[%emt 0:11:05]} 19. Rxe1 {[%emt 0:00:17]} b6 {[%emt 0:04:53]} 20. Ra1 {[%emt 0:02:52]} Qe8 {[%emt 0:03:57]} 21. a4 {[%emt 0:00:37]} fxe4 {[%emt 0:06:39]} 22. Qxe4 {[%emt 0:00:35]} Rf4 {[%emt 0:00:17]} 23. Qc2 {[%emt 0:01:26]} Qf7 {[%emt 0:00:53]} 24. Bc1 {[%emt 0:01:06]} e4 {[%emt 0:08:08]} 25. Bxf4 {[%emt 0:00:19]} Qxf4 {[%emt 0:03:05]} 26. Re1 {[%emt 0:00:22]} Bf5 {[%emt 0:03:30]} 27. Nd2 {[%emt 0:00:44]} e3 {[%emt 0:00:17]} 28. fxe3 {[%emt 0:00:10]} Qxh2+ {[%emt 0:09:56]} 29. Kxh2 {[%emt 0:00:41]} Bxc2 {[%emt 0:00:31]} 30. Nf3 Bxa4 31. Kg3 {[%emt 0:01:16]} Kf7 {[%emt 0:02:43]} 32. Rf1 {[%emt 0:00:27]} Ke7 {[%emt 0:00:12]} 33. Nh4 {[%emt 0:00:29]} Be5+ {[%emt 0:00:30]} 34. Kf3 {[%emt 0:00:25]} Be8 {[%emt 0:00:39]} 35. Ke4 Bf6 36. g3 {[%emt 0:00:54]} Be5 {[%emt 0:00:49]} 37. Kf3 {[%emt 0:00:28]} Kf7 {[%emt 0:01:14]} 38. Ke4+ {[%emt 0:00:21]} Kg7 {[%emt 0:00:23]} 39. Kf3 {[%emt 0:00:36]} Bd7 {[%emt 0:00:19]} 40. g4 {[%emt 0:00:00]} Bf6 {[%emt 0:00:00]} 41. Kg3 {[%emt 0:11:05]} ({Better is} 41. Ng2 $16) 41... Be5+ $1 {[%emt 0:01:21]} 42. Kf3 {[%emt 0:00:14]} Bf6 {[%emt 0:00:07]} 43. Kg3 {[%emt 0:01:50]} Be5+ {[%emt 0:00:19]} 44. Kf3 {[%emt 0:00:11]} Bf6 {[%emt 0:01:17]} 45. Kg3 $11 {[%emt 0:00:49]} 1/2-1/2

[Event "WYCC 2018 G18"]
[Site "Halkidiki"]
[Date "2018.10.21"]
[Round "2"]
[White "Tonso, Liina"]
[Black "Belluire, Beatrice"]
[Result "1-0"]
[ECO "A35"]
[WhiteElo "1805"]
[BlackElo "1931"]
[Annotator "NA"]
[PlyCount "87"]
[EventDate "2018.10.20"]
[EventType "swiss"]
[EventCountry "GRE"]
[SourceTitle "playchess.com"]
[Source "ChessBase"]
[SourceQuality "1"]
[TimeControl "40/5400+30:1800+30"]

1. c4 {[%emt 0:00:00]} c5 {[%emt 0:00:00]} 2. Nc3 {[%emt 0:00:00]} Nc6 {[%emt 0:00:09]} 3. e4 {[%emt 0:01:41]} d6 {[%emt 0:01:13]} 4. Nf3 {[%emt 0:03:43]} Nd4 {[%emt 0:12:11] B30: Sicilian: 2...Nc6 3 Bb5, lines without ...g6} (4... g6 5. d4 cxd4 6. Nxd4 Nf6 7. Be2 Nxd4 8. Qxd4 Bg7 9. Be3 O-O 10. Qd2 Be6 11. Rc1 a5 12. f3 a4 13. Nd5 Bxd5 14. cxd5 a3 15. bxa3 Rxa3 16. Rc2 Qa8 17. O-O Qa4 18. Rc4 Qa8 19. Rc2 Qa4 20. Rc4 Qa8 21. Rc2 {½-½ (21) Murariu,A (2490)-Chirila,I (2485) Bucharest 2009}) 5. Nxd4 {[%emt 0:11:02]} cxd4 {[%emt 0:00:01]} 6. Ne2 {[%emt 0:01:27]} e5 {[%emt 0:02:38]} 7. d3 {[%emt 0:03:11]} Nf6 $146 {[%emt 0:04:46]} ({Predecessor:} 7... Be7 8. Ng3 g6 9. Be2 h5 10. Nf1 Bg5 11. Nd2 Nf6 {½-½ (11) Polacik,I (2168)-Castiglione,M (2240) Slovakia 2013}) 8. g3 {[%emt 0:03:18]} Be6 {[%emt 0:05:53]} 9. Bg2 {[%emt 0:06:14]} Qd7 {[%emt 0:01:30]} 10. O-O {[%emt 0:07:02]} h5 {[%emt 0:05:21]} 11. f4 {[%emt 0:07:34]} Bh3 {[%emt 0:06:56]} 12. f5 {[%emt 0:04:24]} Bxg2 {[%emt 0:00:57]} 13. Kxg2 {[%emt 0:00:12]} h4 {[%emt 0:06:58]} 14. Bd2 {[%emt 0:04:14]} Qc6 {[%emt 0:01:10]} 15. h3 {[%emt 0:08:42]} hxg3 {[%emt 0:05:54]} 16. Nxg3 {[%emt 0:00:34]} Be7 {[%emt 0:01:04]} 17. b4 {[%emt 0:06:02]} b5 {[%emt 0:04:12]} 18. Rc1 {[%emt 0:02:54]} Kd7 {[%emt 0:03:11]} 19. a4 {[%emt 0:05:29]} bxa4 {[%emt 0:01:47]} 20. b5 {[%emt 0:01:11]} Qb7 {[%emt 0:02:03]} 21. Qxa4 {[%emt 0:01:01]} Rhc8 {[%emt 0:09:24]} 22. Ra1 {[%emt 0:02:07]} a6 {[%emt 0:04:37]} 23. b6+ {[%emt 0:09:32]} Rc6 {[%emt 0:00:39]} 24. Ba5 {[%emt 0:01:36]} Bd8 {[%emt 0:01:25]} 25. Rab1 {[%emt 0:01:35]} Ke7 {[%emt 0:00:27]} 26. Rf2 {[%emt 0:02:27]} Rb8 {[%emt 0:00:14]} 27. Rfb2 {[%emt 0:00:37]} Nd7 {[%emt 0:01:12]} 28. Qd1 {[%emt 0:00:59]} Bxb6 {[%emt 0:08:05]} 29. Qg4 {[%emt 0:01:37]} Qc7 {[%emt 0:06:11]} 30. Qxg7 {[%emt 0:02:20]} Rf8 {[%emt 0:00:31]} 31. f6+ {[%emt 0:01:37]} Ke8 {[%emt 0:00:07]} 32. Bxb6 {[%emt 0:00:27]} Rxb6 {[%emt 0:00:07]} 33. Nf5 {[%emt 0:00:29]} Rxb2+ {[%emt 0:00:31]} 34. Rxb2 {[%emt 0:00:03]} Nc5 {[%emt 0:00:12]} 35. Rd2 {[%emt 0:00:49]} Ne6 {[%emt 0:00:53]} 36. Qg4 {[%emt 0:01:16]} Kd7 {[%emt 0:00:29]} 37. Ng7 {[%emt 0:00:10]} Rg8 {[%emt 0:01:35]} 38. Kh2 {[%emt 0:00:15]} Qd8 {[%emt 0:01:32]} 39. Qf5 {[%emt 0:00:29]} Qa5 {[%emt 0:00:47]} 40. Rf2 {[%emt 0:00:00]} Qc3 {[%emt 0:00:00]} 41. Nxe6 {[%emt 0:01:59]} fxe6 {[%emt 0:01:59]} 42. Qh7+ {[%emt 0:00:21]} Kc6 {[%emt 0:00:07]} 43. Qxg8 {[%emt 0:00:30]} Qxd3 {[%emt 0:01:09]} 44. f7 {[%emt 0:00:51] Kd5} 1-0

[Event "WYCC 2018 G18"]
[Site "Halkidiki"]
[Date "2018.10.21"]
[Round "2"]
[White "Martos Amiguet, Valentina"]
[Black "Zairbek kyzy, Begimay"]
[Result "0-1"]
[ECO "D00"]
[WhiteElo "1775"]
[BlackElo "1919"]
[Annotator "NA"]
[PlyCount "136"]
[EventDate "2018.10.20"]
[EventType "swiss"]
[EventCountry "GRE"]
[SourceTitle "playchess.com"]
[Source "ChessBase"]
[SourceQuality "1"]
[TimeControl "40/5400+30:1800+30"]

1. d4 {[%emt 0:00:00]} d5 {[%emt 0:00:00]} 2. Bf4 {[%emt 0:00:00]} e6 {[%emt 0:00:00]} 3. e3 {[%emt 0:00:00]} Nf6 {[%emt 0:00:00]} 4. Nf3 {[%emt 0:00:00]} c5 {[%emt 0:00:00] LiveBook: 781 Games} 5. c3 {[%emt 0:00:05]} Qb6 {[%emt 0:00:28]} 6. Qb3 {[%emt 0:00:31]} Nbd7 {[%emt 0:01:34] D02: 1 d4 d5 2 Nf3 sidelines, including 2...Nf6 3 g3 and 2...Nf6 3 Bf4} (6... Be7 7. h3 O-O 8. Nbd2 Nc6 9. Be2 Qa5 10. O-O b6 11. a4 Ba6 12. Qd1 Bxe2 13. Qxe2 c4 14. Rfc1 {1-0 (35) Abasov,N (2622)-Manik,M (2433) Ordu 2018}) 7. Nbd2 {[%emt 0:00:58]} Be7 {[%emt 0:05:17]} 8. Be2 {[%emt 0:01:07]} Nh5 $146 {[%emt 0:02:04]} ({Predecessor:} 8... Qxb3 9. axb3 O-O 10. O-O Ne8 11. Ra2 cxd4 12. exd4 Bd6 13. Bg3 Bxg3 14. fxg3 {½-½ (38) Welz,T (2335)-Biebinger,G (2310) Germany 1994}) 9. Bg3 {[%emt 0:01:44]} Nxg3 {[%emt 0:06:06]} 10. hxg3 {[%emt 0:00:11]} h6 {[%emt 0:01:01]} 11. Qc2 {[%emt 0:01:10]} Bf6 {[%emt 0:01:21]} 12. g4 {[%emt 0:05:20]} g5 {[%emt 0:03:07]} (12... Qd8 $11 {remains equal.}) 13. Nf1 {[%emt 0:15:43]} e5 {[%emt 0:04:08]} 14. Ng3 {[%emt 0:07:34]} cxd4 {[%emt 0:08:24]} 15. exd4 {[%emt 0:01:14]} exd4 {[%emt 0:00:39]} 16. cxd4 {[%emt 0:09:34]} Bxd4 {[%emt 0:04:15]} 17. Nxd4 {[%emt 0:00:05]} Qxd4 {[%emt 0:00:15]} 18. Nf5 {[%emt 0:00:52]} Qf6 {[%emt 0:02:43]} 19. Rc1 {[%emt 0:03:40]} Nb6 {[%emt 0:05:16]} 20. Bb5+ {[%emt 0:05:54]} Kf8 {[%emt 0:01:55]} 21. Qc5+ {[%emt 0:08:28]} Kg8 {[%emt 0:00:26]} 22. Ne7+ {[%emt 0:05:15]} Kg7 {[%emt 0:00:07]} 23. Nxd5 {[%emt 0:07:21]} Nxd5 {[%emt 0:04:19]} 24. Qxd5 {[%emt 0:00:12]} Qxb2 {[%emt 0:01:21]} 25. O-O {[%emt 0:00:39]} Be6 {[%emt 0:01:04]} 26. Qd3 {[%emt 0:06:38]} Rad8 {[%emt 0:02:47]} 27. Rc2 {[%emt 0:01:04]} Qb4 {[%emt 0:07:49]} 28. Qe2 {[%emt 0:01:38]} Qxg4 {[%emt 0:04:56]} 29. Qe5+ {[%emt 0:02:05]} Kg8 {[%emt 0:00:53]} 30. Rc7 {[%emt 0:03:18]} Bd5 {[%emt 0:04:22]} 31. f3 {[%emt 0:01:08]} Qe6 {[%emt 0:01:25]} 32. Qxe6 {[%emt 0:03:07]} fxe6 {[%emt 0:00:14]} 33. a3 {[%emt 0:00:58]} Rh7 {[%emt 0:00:22]} 34. Rfc1 Rf8 35. Bd3 Rxc7 36. Rxc7 Rf7 37. Rc1 Kg7 38. Rb1 Rc7 39. Be4 Bxe4 40. fxe4 Kf6 41. Rb5 b6 42. Rb4 Ke5 43. a4 Rc2 44. a5 bxa5 45. Rb5+ Kxe4 46. Rxa5 {[%emt 0:24:29]} e5 47. Rxa7 Kf4 {[%emt 0:09:40]} 48. Rf7+ {[%emt 0:02:14]} Kg4 {[%emt 0:00:05]} 49. Rf3 {[%emt 0:02:32]} e4 {[%emt 0:00:55]} 50. Rh3 {[%emt 0:04:10]} h5 {[%emt 0:00:49]} 51. Kh2 {[%emt 0:05:10]} h4 {[%emt 0:00:39]} 52. Ra3 {[%emt 0:00:42]} Rd2 {[%emt 0:00:39]} 53. Ra4 {[%emt 0:01:14]} Re2 {[%emt 0:00:25]} 54. Rb4 {[%emt 0:01:37]} h3 {[%emt 0:00:20]} 55. Rb3 {[%emt 0:04:08]} Rxg2+ {[%emt 0:00:55]} 56. Kh1 {[%emt 0:00:24]} Re2 {[%emt 0:00:08]} 57. Rb1 {[%emt 0:01:29]} Kf3 {[%emt 0:00:46]} 58. Rg1 {[%emt 0:00:47]} g4 59. Rf1+ Rf2 60. Rg1 g3 61. Re1 g2+ 62. Kh2 Rf1 63. Rxf1+ gxf1=B {[%emt 0:04:12]} 64. Kg1 {[%emt 0:04:10]} Bg2 {[%emt 0:00:04]} 65. Kh2 {[%emt 0:00:11]} e3 {[%emt 0:00:07]} 66. Kg1 {[%emt 0:00:15]} e2 {[%emt 0:00:06]} 67. Kh2 Kg4 68. Kg1 {[%emt 0:00:26]} e1=Q+ {[%emt 0:00:13]} 0-1